fUST/lending_fUST_20250807
["ID","MTS","AMOUNT","RATE_DAILY","PERIOD"]
[377700991,1754497845149,-1000.0,0.00031,8]
[377700992,1754497845159,-216.47163855,0.00031,7]
[377700993,1754497845168,-6000.0,0.00031,5]
[377700994,1754497845178,-833.83,0.00031093,15]
[377700995,1754497845188,-4489.62,0.000311,2]
[377700996,1754497845198,-500.0,0.0003116,5]
[377700997,1754497845208,-500.0,0.00031173,2]
[377700998,1754497845217,-833.83,0.00031193,15]
[377700999,1754497845228,-960.0,0.00031211,2]
[377701000,1754497845238,-1493.14699047,0.00031265,2]
[377701001,1754497845248,-833.83,0.00031293,15]
[377701002,1754497845258,-800.0,0.00031383,2]
[377701003,1754497845268,-833.83,0.00031393,15]
[377701004,1754497845277,-200.0,0.00031417,15]
[377701005,1754497845287,-200.0,0.00031417,15]
[377701006,1754497845298,-200.0,0.00031417,15]
[377701007,1754497845308,-379.0,0.00031417,15]
[377701008,1754497845318,-4000.0,0.00031419,5]
[377701009,1754497845328,-151.0,0.00031435,2]
[377701010,1754497845339,-500.0,0.00031447,2]
[377701011,1754497845349,-1887.4,0.00031487,7]
[377701012,1754497845359,-6783.81758122,0.0003149,16]
[377701013,1754497845369,-833.83,0.00031493,15]
[377701014,1754497845379,-151.0,0.000315,11]
[377701015,1754497845389,-11071.41,0.000315,7]
[377701016,1754497845398,-1000.0,0.000315,8]
[377701017,1754497845408,-6500.0,0.00031548,5]
[377701018,1754497845418,-271.186727,0.00031556,2]
[377701019,1754497845428,-833.83,0.00031593,15]
[377701020,1754497845438,-823.0,0.00031641,2]
[377701021,1754497845450,-152.0,0.00031644,14]
[377701022,1754497845460,-800.0,0.00031678,2]
[377701023,1754497845470,-833.83,0.00031693,15]
[377701024,1754497845480,-800.0,0.00031701,2]
[377701025,1754497845490,-500.0,0.00031721,2]
[377701026,1754497845500,-1060.0,0.00031759,2]
[377701027,1754497845511,-800.0,0.00031784,2]
[377701028,1754497845522,-724.63487034,0.00031788,2]
[377701029,1754497845544,-600.0,0.00031788,2]
[377701030,1754497845556,-325.83,0.00031788,2]
[377701031,1754497845568,-833.83,0.00031793,15]
[377701032,1754497845580,-800.0,0.00031795,2]
[377701033,1754497845591,-800.0,0.00031797,2]
[377701034,1754497845602,-2240.37,0.000318,7]
[377701035,1754497845612,-12134.6212045,0.000318,2]
[377701036,1754497845623,-184.74002549,0.000318,2]
[377701039,1754497845831,-5882.32691134,0.000318,2]
[377701041,1754497846096,-97.77557879,0.0002499,10]
[377701067,1754497846468,-151.0,0.00028697,2]
[377701068,1754497846478,-151.0,0.00028697,2]
[377701069,1754497846488,-33159.56155268,0.000318,2]
[377701070,1754497846498,-151.0,0.000318,7]
[377701071,1754497846508,-800.0,0.00031866,2]
[377701072,1754497846518,-216.321428,0.00031882,20]
[377701073,1754497846528,-600.0,0.00031883,2]
[377701074,1754497846538,-325.83,0.00031883,2]
[377701075,1754497846548,-800.0,0.00031886,2]
[377701076,1754497846558,-833.83,0.00031893,15]
[377701077,1754497846568,-13929.40087504,0.000319,2]
[377701078,1754497846581,-325.21368597,0.000319,2]
[377701087,1754497848458,-527.46908335,0.000287,10]
[377701088,1754497848468,-153.0,0.00029846,2]
[377701089,1754497848478,-153.0,0.00029846,2]
[377701090,1754497848488,-153.0,0.00029846,2]
[377701091,1754497848498,-153.0,0.00029846,2]
[377701092,1754497848508,-153.0,0.00029846,2]
[377701093,1754497848518,-153.0,0.00029846,2]
[377701094,1754497848529,-158977.72276913,0.000319,2]
[377701095,1754497848539,-22928.73,0.000319,2]
[377701096,1754497848548,-12632.49,0.000319,2]
[377701097,1754497848558,-10718.1,0.000319,2]
[377701098,1754497848568,-568383.24,0.000319,2]
[377701099,1754497848577,-537735.97595629,0.000319,2]
[377701101,1754498024080,242.173609,0.00023874,2]
[377701102,1754498053104,234.205451,0.00024143,2]
[377701103,1754498146575,192.58001721,0.00024347,2]
[377701104,1754498201172,189.440587,0.00013699,2]
[377701105,1754498201243,189.440587,0.00020187,2]
[377701107,1754498310413,180.79888368,0.0002463,2]
[377701108,1754498472638,199.0,0.000247,2]
[377701109,1754498533436,24900.0,0.00023973,2]
[377701120,1754498603135,155.98,0.00024,2]
[377701121,1754498643610,631.588685,0.0002394,2]
[377701122,1754498648989,151.0,0.000251,16]
[377701123,1754498649333,151.0,0.000251,18]
[377701124,1754498651410,151.0,0.000251,17]
[377701125,1754498695160,266.51366233,0.00019178,2]
[377701126,1754498713779,210.35256253,0.00024689,2]
[377701127,1754498735232,-1982.4680647,0.0002478,2]
[377701129,1754498809081,1996.49446721,0.0002253,2]
[377701130,1754498841467,10000.0,0.000247,2]
[377701131,1754498845336,6808.09348339,0.000247,2]
[377701132,1754498852102,-300.0,0.00024788,2]
[377701133,1754498852123,-114.20140436,0.00024788,2]
[377701134,1754498859489,168.16503093,0.00024688,2]
[377701135,1754498873087,10000.0,0.00023885,2]
[377701136,1754498912324,150.0,0.00023993,2]
[377701137,1754498956087,-300.0,0.00024787,2]
[377701138,1754498956111,-48.53725371,0.00024788,2]
[377701139,1754498956806,151.0,0.000251,17]
[377701140,1754498957131,151.0,0.000251,16]
[377701141,1754498957879,151.0,0.000251,17]
[377701142,1754498958229,151.0,0.00025,20]
[377701143,1754498958936,151.0,0.00025,19]
[377701144,1754498961164,-137.26134193,0.00024788,2]
[377701145,1754498961186,-1200.0,0.00024788,2]
[377701146,1754498961207,-300.0,0.00024788,2]
[377701147,1754498961228,-1200.0,0.00024788,2]
[377701148,1754498961247,-662.831,0.00024789,2]
[377701149,1754498961267,-1648.636,0.00024789,2]
[377701150,1754498961288,-1198.977,0.00024789,2]
[377701151,1754498961308,-1592.49937092,0.000248,2]
[377701152,1754498961329,-446.98509581,0.000248,2]
[377701153,1754498976923,97.01591556,0.00024013,2]
[377701154,1754498976958,52.98408444,0.00024013,2]
[377701155,1754499014582,6663.48213281,0.00024698,2]
[377701156,1754499029763,666.0,0.00024091,2]
[377701192,1754499032548,-500.0,0.00024873,2]
[377701194,1754499032558,-500.0,0.00024873,2]
[377701196,1754499032568,-200.0,0.00024897,2]
[377701198,1754499032577,-200.0,0.00024897,2]
[377701200,1754499032587,-300.0,0.00024897,2]
[377701202,1754499032596,-231.29856703,0.00024897,2]
[377701205,1754499032608,-545.18028167,0.00024897,2]
[377701499,1754499038413,-423.5211513,0.00024897,2]
[377701501,1754499038424,-500.0,0.00024897,2]
[377701503,1754499038434,-500.0,0.00024897,2]
[377701505,1754499038443,-500.0,0.00024897,2]
[377701507,1754499038454,-235.59253203,0.00024897,2]
[377701509,1754499038464,-500.0,0.00024897,2]
[377701511,1754499038473,-500.0,0.00024897,2]
[377701513,1754499038483,-417.60339401,0.00024897,2]
[377701515,1754499038493,-500.0,0.00024897,2]
[377701517,1754499038502,-500.0,0.00024897,2]
[377701519,1754499038512,-500.0,0.00024897,2]
[377701521,1754499038523,-500.0,0.00024897,2]
[377701523,1754499038534,-500.0,0.00024897,2]
[377701525,1754499038544,-500.0,0.00024897,2]
[377701527,1754499038553,-500.0,0.00024897,2]
[377701529,1754499038563,-500.0,0.00024897,2]
[377701531,1754499038573,-174.27038288,0.00024897,2]
[377701533,1754499038582,-500.0,0.00024897,2]
[377701535,1754499038592,-500.0,0.00024897,2]
[377701537,1754499038602,-500.0,0.00024897,2]
[377701539,1754499038611,-500.0,0.00024897,2]
[377701541,1754499038620,-486.53105709,0.00024897,2]
[377701543,1754499038630,-500.0,0.00024897,2]
[377701545,1754499038641,-500.0,0.00024897,2]
[377701547,1754499038650,-500.0,0.00024897,2]
[377701549,1754499038659,-249.99223785,0.00024897,2]
[377701551,1754499038669,-500.0,0.00024897,2]
[377701553,1754499038679,-500.0,0.00024897,2]
[377701555,1754499038688,-500.0,0.00024897,2]
[377701557,1754499038698,-500.0,0.00024897,2]
[377701559,1754499038707,-500.0,0.00024897,2]
[377701561,1754499038717,-500.0,0.00024897,2]
[377701562,1754499038727,-500.0,0.00024897,2]
[377701564,1754499038736,-500.0,0.00024897,2]
[377701566,1754499038746,-50000.0,0.00024898,2]
[377701567,1754499038755,-478.3353844,0.00024899,2]
[377701569,1754499038766,-638.82762083,0.00024899,2]
[377701571,1754499038776,-12785.392494,0.000249,2]
[377701573,1754499038785,-217.51,0.0002495,3]
[377701575,1754499038795,-652.54,0.0002495,3]
[377701577,1754499038804,-123877.183935,0.0002496,2]
[377701579,1754499038814,-9811.71621173,0.0002496,2]
[377701581,1754499038823,-500.0,0.0002497,2]
[377701583,1754499038833,-3480.12,0.0002497,3]
[377701585,1754499038843,-1740.06,0.0002497,3]
[377701587,1754499038852,-870.03,0.0002497,3]
[377701589,1754499038861,-435.02,0.0002497,3]
[377701591,1754499038871,-123877.183935,0.0002497,2]
[377701593,1754499038880,-9811.71621173,0.0002497,2]
[377701595,1754499038890,-500.0,0.00024973,2]
[377701597,1754499038900,-500.0,0.00024973,2]
[377701599,1754499038910,-500.0,0.00024973,2]
[377701601,1754499038923,-500.0,0.00024973,2]
[377701603,1754499038932,-500.0,0.00024973,2]
[377701605,1754499038943,-500.0,0.00024973,2]
[377701607,1754499038953,-500.0,0.00024973,2]
[377701609,1754499038963,-500.0,0.00024973,2]
[377701611,1754499038972,-338.74755064,0.00024973,2]
[377701613,1754499038981,-500.0,0.00024973,2]
[377701615,1754499038991,-500.0,0.00024973,2]
[377701617,1754499039000,-501.08754036,0.00024973,2]
[377701619,1754499039010,-200.52345309,0.00024973,2]
[377701621,1754499039021,-500.0,0.00024973,2]
[377701623,1754499039034,-500.0,0.00024973,2]
[377701625,1754499039044,-501.65518874,0.00024973,2]
[377701627,1754499039053,-500.0,0.00024973,2]
[377701629,1754499039062,-500.0,0.00024973,2]
[377701631,1754499039072,-500.0,0.00024973,2]
[377701633,1754499039082,-500.0,0.00024973,2]
[377701635,1754499039092,-151.37334301,0.00024973,2]
[377701636,1754499039102,-500.0,0.00024973,2]
[377701637,1754499039112,-500.0,0.00024973,2]
[377701638,1754499039123,-503.81954376,0.00024973,2]
[377701639,1754499039132,-247754.367871,0.0002498,2]
[377701640,1754499039142,-19623.4324235,0.0002498,2]
[377701641,1754499039152,-100000.0,0.0002499,2]
[377701642,1754499039162,-151.0,0.00025,6]
[377701643,1754499039172,-151.0,0.00025,13]
[377701644,1754499039182,-151.0,0.00025,12]
[377701645,1754499039191,-151.0,0.00025,10]
[377701646,1754499039201,-151.0,0.00025,6]
[377701647,1754499039211,-175.87814443,0.00025,2]
[377701648,1754499039220,-151.0,0.00025,12]
[377701649,1754499039230,-255.0,0.0002501,2]
[377701650,1754499039239,-354.0,0.0002501,2]
[377701651,1754499039248,-166.86406192,0.00025015,2]
[377701652,1754499039258,-461.26544088,0.00025028,3]
[377701653,1754499039267,-160.0,0.00025028,3]
[377701654,1754499039277,-231.78005385,0.00025028,3]
[377701655,1754499039286,-12657.93264304,0.00025028,3]
[377701656,1754499039296,-842.45170444,0.00025028,3]
[377701657,1754499039305,-160.0,0.00025028,3]
[377701658,1754499039315,-160.0,0.00025028,3]
[377701659,1754499039324,-160.0,0.00025028,3]
[377701660,1754499039333,-160.0,0.00025028,3]
[377701661,1754499039343,-160.0,0.00025028,3]
[377701662,1754499039352,-216.47163855,0.00025028,3]
[377701663,1754499039361,-312.16666667,0.00025028,3]
[377701664,1754499039371,-19228.97878596,0.00025028,3]
[377701665,1754499039380,-9811.71621173,0.00025063,2]
[377701666,1754499039390,-549.64932361,0.00025073,2]
[377701667,1754499039400,-616.75076089,0.00025073,2]
[377701668,1754499039414,-500.0,0.00025073,2]
[377701670,1754499039424,-500.0,0.00025073,2]
[377701671,1754499039433,-500.0,0.00025073,2]
[377701672,1754499039443,-402.02018848,0.00025073,2]
[377701675,1754499039463,-500.0,0.00025073,2]
[377701677,1754499039474,-150.0,0.00025073,2]
[377701679,1754499039486,-500.0,0.00025073,2]
[377701681,1754499039496,-500.0,0.00025073,2]
[377701683,1754499039505,-500.0,0.00025073,2]
[377701685,1754499039516,-501.7277461,0.00025073,2]
[377701687,1754499039527,-500.88626176,0.00025073,2]
[377701689,1754499039537,-500.0,0.00025073,2]
[377701691,1754499039547,-500.0,0.00025073,2]
[377701693,1754499039556,-171.49866874,0.00025073,2]
[377701695,1754499039566,-9811.71621173,0.00025098,2]
[377701697,1754499039576,-151.0,0.000251,10]
[377701699,1754499039585,-151.0,0.000251,10]
[377701701,1754499039595,-151.0,0.000251,11]
[377701703,1754499039605,-200.0,0.00025108,10]
[377701705,1754499039614,-200.0,0.00025108,10]
[377701708,1754499039624,-200.0,0.00025108,10]
[377701709,1754499039634,-200.0,0.00025108,10]
[377701712,1754499039644,-200.0,0.00025108,10]
[377701714,1754499039654,-200.0,0.00025108,10]
[377701715,1754499039664,-200.0,0.00025108,10]
[377701716,1754499039674,-200.0,0.00025108,10]
[377701717,1754499039684,-200.0,0.00025108,10]
[377701718,1754499039694,-200.0,0.00025108,10]
[377701719,1754499039704,-200.0,0.00025108,10]
[377701720,1754499039714,-200.0,0.00025108,10]
[377701721,1754499039724,-200.0,0.00025108,10]
[377701722,1754499039734,-200.0,0.00025108,10]
[377701723,1754499039745,-200.0,0.00025108,10]
[377701724,1754499039755,-200.0,0.00025108,10]
[377701725,1754499039765,-200.0,0.00025108,10]
[377701726,1754499039781,-200.0,0.00025108,10]
[377701727,1754499039791,-200.0,0.00025108,10]
[377701728,1754499039800,-200.0,0.00025108,10]
[377701729,1754499039811,-200.0,0.00025108,10]
[377701730,1754499039820,-200.0,0.00025108,10]
[377701731,1754499039830,-200.0,0.00025108,10]
[377701732,1754499039840,-228.527101,0.00025108,10]
[377701733,1754499039850,-9811.71621173,0.00025108,2]
[377701734,1754499039859,-151.0,0.00025113,2]
[377701735,1754499039869,-497.51130357,0.00025113,2]
[377701736,1754499039879,-78493.7296938,0.00025118,2]
[377701737,1754499039889,-370000.0,0.00025128,2]
[377701738,1754499039899,-150.0,0.00025156,2]
[377701739,1754499039912,-502.53353566,0.00025173,2]
[377701741,1754499039922,-500.0,0.00025173,2]
[377701742,1754499039932,-500.0,0.00025173,2]
[377701743,1754499039942,-500.0,0.00025173,2]
[377701744,1754499039951,-500.0,0.00025173,2]
[377701745,1754499039961,-500.0,0.00025173,2]
[377701746,1754499039971,-500.0,0.00025173,2]
[377701753,1754499040192,-150.0,0.00025173,2]
[377701754,1754499040202,-500.0,0.00025173,2]
[377701755,1754499040212,-500.0,0.00025173,2]
[377701756,1754499040222,-502.57888164,0.00025173,2]
[377701757,1754499040231,-500.0,0.00025173,2]
[377701758,1754499040241,-500.0,0.00025173,2]
[377701759,1754499040251,-500.0,0.00025173,2]
[377701760,1754499040260,-500.0,0.00025173,2]
[377701762,1754499040270,-504.74302878,0.00025173,2]
[377701763,1754499040279,-500.0,0.00025173,2]
[377701765,1754499040289,-157.97588932,0.00025173,2]
[377701766,1754499040298,-500.82830306,0.00025173,2]
[377701768,1754499040307,-520.81293181,0.00025173,2]
[377701770,1754499040317,-503.30987209,0.00025173,2]
[377701771,1754499040326,-500.0,0.00025173,2]
[377701772,1754499040336,-500.0,0.00025173,2]
[377701774,1754499040346,-500.0,0.00025173,2]
[377701776,1754499040355,-500.0,0.00025173,2]
[377701777,1754499040365,-500.0,0.00025173,2]
[377701779,1754499040374,-500.0,0.00025173,2]
[377701781,1754499040383,-500.0,0.00025173,2]
[377701782,1754499040392,-513.75963925,0.00025173,2]
[377701785,1754499040407,-189.99747992,0.00025173,2]
[377701786,1754499040417,-500.0,0.00025173,2]
[377701787,1754499040427,-500.0,0.00025173,2]
[377701788,1754499040436,-500.0,0.00025173,2]
[377701789,1754499040446,-500.0,0.00025173,2]
[377701790,1754499040458,-500.0,0.00025173,2]
[377701791,1754499040467,-500.0,0.00025173,2]
[377701792,1754499040477,-500.0,0.00025173,2]
[377701793,1754499040487,-500.0,0.00025173,2]
[377701794,1754499040497,-500.0,0.00025173,2]
[377701795,1754499040506,-500.76397138,0.00025173,2]
[377701796,1754499040516,-500.0,0.00025173,2]
[377701797,1754499040525,-500.0,0.00025173,2]
[377701798,1754499040534,-500.0,0.00025173,2]
[377701799,1754499040544,-158.68936938,0.00025173,2]
[377701800,1754499040553,-500.0,0.00025173,2]
[377701801,1754499040563,-500.0,0.00025173,2]
[377701802,1754499040573,-500.0,0.00025173,2]
[377701803,1754499040582,-500.0,0.00025173,2]
[377701804,1754499040592,-500.0,0.00025173,2]
[377701805,1754499040602,-500.0,0.00025173,2]
[377701806,1754499040612,-173.37471627,0.00025173,2]
[377701807,1754499040621,-503.94239225,0.00025173,2]
[377701808,1754499040631,-500.0,0.00025173,2]
[377701809,1754499040640,-444.66316566,0.00025173,2]
[377701810,1754499040652,-500.0,0.00025173,2]
[377701811,1754499040662,-500.0,0.00025173,2]
[377701812,1754499040672,-500.0,0.00025173,2]
[377701813,1754499040681,-500.0,0.00025173,2]
[377701814,1754499040691,-500.0,0.00025173,2]
[377701815,1754499040700,-500.0,0.00025173,2]
[377701816,1754499040710,-500.0,0.00025173,2]
[377701817,1754499040720,-348.10445271,0.00025173,2]
[377701818,1754499040730,-500.0,0.00025173,2]
[377701819,1754499040739,-500.0,0.00025173,2]
[377701820,1754499040749,-500.0,0.00025173,2]
[377701821,1754499040758,-151.0,0.000252,11]
[377701822,1754499040768,-7303.8107236,0.000252,2]
[377701823,1754499040777,-500.0,0.00025244,2]
[377701824,1754499040787,-740.45571688,0.00025421,2]
[377701825,1754499040796,-9811.71621173,0.00025511,2]
[377701826,1754499040807,-500.0,0.00025518,2]
[377701827,1754499040816,-440.95886782,0.00025521,2]
[377701828,1754499040825,-1000.0,0.00025521,2]
[377701829,1754499040834,-489.77376666,0.00025521,2]
[377701830,1754499040843,-1000.0,0.00025521,2]
[377701831,1754499040854,-1000.0,0.00025521,2]
[377701832,1754499040863,-1000.0,0.00025521,2]
[377701833,1754499040873,-518.50964541,0.00025521,2]
[377701834,1754499040883,-507.22421426,0.00025521,2]
[377701835,1754499040893,-1000.0,0.00025521,2]
[377701836,1754499040904,-501.45674522,0.00025521,2]
[377701837,1754499040914,-1000.0,0.00025521,2]
[377701838,1754499040924,-1000.0,0.00025521,2]
[377701839,1754499040933,-1000.0,0.00025521,2]
[377701840,1754499040943,-613.83627963,0.00025521,2]
[377701841,1754499040952,-505.48273847,0.00025521,2]
[377701842,1754499040962,-1000.0,0.00025521,2]
[377701843,1754499040972,-263.02538677,0.00025621,2]
[377701844,1754499040982,-507.44277897,0.00025621,2]
[377701845,1754499040991,-991.8380123,0.00025621,2]
[377701846,1754499041001,-1000.0,0.00025621,2]
[377701847,1754499041012,-276.06679903,0.00025621,2]
[377701848,1754499041021,-250.0,0.00025621,2]
[377701849,1754499041031,-1000.0,0.00025621,2]
[377701850,1754499041041,-1000.0,0.00025621,2]
[377701851,1754499041050,-5000.0,0.00025662,2]
[377701854,1754499041060,-6663.48213276,0.0002567,3]
[377701855,1754499041069,-151.0,0.000257,12]
[377701857,1754499041080,-9811.71621173,0.00025711,2]
[377701859,1754499041090,-1107.10393979,0.00025721,2]
[377701861,1754499041099,-203.17003837,0.00025721,2]
[377701863,1754499041109,-503.64919299,0.00025721,2]
[377701865,1754499041119,-477.16571448,0.00025721,2]
[377701866,1754499041128,-169.08448313,0.00025721,2]
[377701867,1754499041138,-250.0,0.00025721,2]
[377701868,1754499041150,-1000.0,0.00025721,2]
[377701869,1754499041159,-1000.0,0.00025721,2]
[377701870,1754499041169,-1000.0,0.00025721,2]
[377701872,1754499041179,-531.6077824,0.00025721,2]
[377701873,1754499041188,-1000.0,0.00025721,2]
[377701875,1754499041198,-1000.0,0.00025721,2]
[377701876,1754499041207,-1000.0,0.00025721,2]
[377701877,1754499041218,-500.0,0.00025721,2]
[377701878,1754499041227,-945.82939739,0.00025721,2]
[377701879,1754499041237,-393.96397647,0.00025721,2]
[377701880,1754499041247,-1000.0,0.00025721,2]
[377701882,1754499041256,-502.55924829,0.00025721,2]
[377701884,1754499041266,-1000.0,0.00025721,2]
[377701886,1754499041276,-525.84887754,0.00025721,2]
[377701887,1754499041285,-504.86130906,0.00025721,2]
[377701889,1754499041295,-1004.52931059,0.00025721,2]
[377701890,1754499041304,-1000.0,0.00025721,2]
[377701891,1754499041314,-1000.0,0.00025721,2]
[377701892,1754499041324,-1000.0,0.00025721,2]
[377701893,1754499041333,-1000.0,0.00025721,2]
[377701894,1754499041342,-1000.0,0.00025721,2]
[377701896,1754499041352,-1000.0,0.00025721,2]
[377701897,1754499041361,-1000.0,0.00025721,2]
[377701898,1754499041370,-1000.0,0.00025721,2]
[377701899,1754499041379,-1000.0,0.00025721,2]
[377701900,1754499041388,-154.32672616,0.00025721,2]
[377701901,1754499041400,-501.33701781,0.00025721,2]
[377701902,1754499041412,-1000.0,0.00025721,2]
[377701903,1754499041422,-1000.0,0.00025721,2]
[377701904,1754499041431,-1000.0,0.00025721,2]
[377701905,1754499041440,-413.16299039,0.00025721,2]
[377701906,1754499041450,-154.01593757,0.00025721,2]
[377701907,1754499041459,-504.84484149,0.00025721,2]
[377701908,1754499041468,-1011.93534382,0.00025721,2]
[377701909,1754499041478,-1000.0,0.00025721,2]
[377701910,1754499041490,-1000.0,0.00025721,2]
[377701912,1754499041500,-1000.0,0.00025721,2]
[377701913,1754499041510,-1000.0,0.00025721,2]
[377701914,1754499041519,-1000.0,0.00025721,2]
[377701915,1754499041528,-1000.0,0.00025721,2]
[377701916,1754499041538,-1002.29930668,0.00025721,2]
[377701917,1754499041547,-1000.0,0.00025721,2]
[377701918,1754499041557,-500.0,0.00025792,2]
[377701919,1754499041567,-151.0,0.000259,15]
[377701920,1754499041578,-3732.03,0.00025908,2]
[377701921,1754499041588,-3732.03,0.00025908,2]
[377701922,1754499041598,-3732.03,0.00025908,2]
[377701923,1754499041608,-3732.03,0.00025908,2]
[377701924,1754499041618,-3732.03,0.00025908,2]
[377701925,1754499041627,-3732.03,0.00025908,2]
[377701926,1754499041637,-500.0,0.00025914,2]
[377701927,1754499041650,-160.0,0.00026021,2]
[377701928,1754499041659,-200.0,0.00026026,15]
[377701929,1754499041669,-300.0,0.00026026,15]
[377701930,1754499041679,-9811.71621173,0.00026029,2]
[377701931,1754499041688,-12785.392494,0.00026039,2]
[377701932,1754499041698,-500.0,0.00026066,2]
[377701933,1754499041708,-150.0,0.00026067,2]
[377701934,1754499041717,-1500.0,0.00026068,2]
[377701935,1754499041726,-1500.0,0.00026068,2]
[377701936,1754499041737,-1604.34550906,0.00026068,2]
[377701937,1754499041746,-1500.0,0.00026068,2]
[377701938,1754499041756,-1500.0,0.00026068,2]
[377701939,1754499041766,-1500.0,0.00026068,2]
[377701940,1754499041775,-1500.0,0.00026068,2]
[377701941,1754499041785,-502.65613435,0.00026168,2]
[377701942,1754499041794,-350.0,0.00026168,2]
[377701943,1754499041804,-1500.0,0.00026168,2]
[377701944,1754499041813,-1500.0,0.00026168,2]
[377701945,1754499041823,-3732.03,0.00026172,2]
[377701946,1754499041833,-9811.71621173,0.00026258,2]
[377701947,1754499041842,-455.66660422,0.00026268,2]
[377701948,1754499041852,-1500.0,0.00026268,2]
[377701949,1754499041862,-1500.0,0.00026268,2]
[377701950,1754499041871,-1324.97525436,0.00026268,2]
[377701951,1754499041880,-1500.0,0.00026268,2]
[377701952,1754499041890,-1500.0,0.00026268,2]
[377701953,1754499041901,-739.0491143,0.00026268,2]
[377701954,1754499041911,-1153.63981211,0.00026268,2]
[377701955,1754499041922,-654.59097771,0.00026268,2]
[377701956,1754499041932,-1002.2046253,0.00026268,2]
[377701957,1754499041941,-502.17984503,0.00026268,2]
[377701958,1754499041951,-1500.0,0.00026268,2]
[377701959,1754499041961,-1500.0,0.00026268,2]
[377701960,1754499041972,-507.23592152,0.00026268,2]
[377701961,1754499041982,-1500.0,0.00026268,2]
[377701962,1754499041992,-1500.0,0.00026268,2]
[377701963,1754499042003,-501.87617131,0.00026268,2]
[377701964,1754499042012,-908.40515937,0.00026268,2]
[377701965,1754499042023,-1500.0,0.00026268,2]
[377701966,1754499042033,-1500.0,0.00026268,2]
[377701967,1754499042044,-366.21517508,0.00026268,2]
[377701968,1754499042057,-1500.0,0.00026268,2]
[377701969,1754499042067,-1500.0,0.00026268,2]
[377701970,1754499042077,-1500.0,0.00026268,2]
[377701971,1754499042088,-501.43765266,0.00026268,2]
[377701972,1754499042099,-1500.0,0.00026268,2]
[377701973,1754499042110,-1500.0,0.00026268,2]
[377701974,1754499042120,-150.0,0.00026299,2]
[377701975,1754499042130,-435.02,0.0002632,3]
[377701976,1754499042140,-500.0,0.0002634,2]
[377701977,1754499042152,-6960.24,0.0002634,3]
[377701978,1754499042161,-3480.12,0.0002634,3]
[377701979,1754499042171,-1740.06,0.0002634,3]
[377701980,1754499042181,-870.04,0.0002634,3]
[377701981,1754499042193,-160.0,0.0002634,3]
[377701982,1754499042203,-216.47163855,0.0002634,3]
[377701983,1754499042213,-312.16666667,0.0002634,3]
[377701984,1754499042224,-580.922,0.00026345,13]
[377701985,1754499042234,-179.36,0.00026345,13]
[377701986,1754499042245,-151.0,0.000264,20]
[377701987,1754499042255,-3732.03,0.0002652,2]
[377701988,1754499042265,-260.0,0.00026569,2]
[377701989,1754499042276,-151.0,0.000266,12]
[377701990,1754499042285,-500.0,0.00026614,2]
[377701991,1754499042296,-152.18536256,0.00026615,2]
[377701992,1754499042305,-2000.0,0.00026616,2]
[377701993,1754499042316,-2004.04158718,0.00026616,2]
[377701994,1754499042326,-2000.0,0.00026616,2]
[377701995,1754499042338,-2000.0,0.00026616,2]
[377701996,1754499042349,-738.19437193,0.00026616,2]